bitfinex-derivatives/quotes_BNBF0:USTF0_20250425
["timestamp","ask_amount","ask_price","bid_price","bid_amount"]
[1745552951139,0.28962711,601.92,600.28,0.30572769]
[1745552956744,1.25759526,601.99,600.28,0.30572769]
[1745552957146,0.28961987,601.98,600.28,0.30572769]
[1745552957738,1.25759526,601.97,600.28,1.52372769]
[1745552957940,1.25759526,601.97,600.29,0.30572769]
[1745552958145,1.25759526,601.97,600.3,0.3057222]
[1745552958341,1.25759526,601.97,600.29,0.3057222]
[1745552958541,1.25759526,601.97,600.3,1.26372193]
[1745552958745,1.25759526,601.97,600.31,0.30572193]
[1745552959546,1.25759526,601.97,600.3,0.958]
[1745552959750,1.25759526,601.97,600.31,0.30571801]
[1745552960048,0.28961867,601.96,600.31,0.30571801]
[1745552961148,0.28961867,601.96,600.3,0.958]
[1745552961352,0.28961867,601.96,600.31,0.30571647]
[1745552962950,1.25759526,602.15,600.31,0.30571647]
[1745552963149,0.28959216,601.95,600.31,0.30571647]
[1745552963351,1.25759526,602.15,600.31,1.62771647]
[1745552963550,1.25759526,602.15,600.32,0.30571647]
[1745552964252,0.28959577,602.14,600.32,0.30571647]
[1745552965653,1.25759526,602.11,600.32,0.30571647]
[1745552965853,1.25759526,602.11,600.31,1.322]
[1745552966154,0.28960059,602.1,600.31,1.322]
[1745552966654,0.28960059,602.1,600.32,0.30571776]
[1745552968751,1.25759526,602.2,600.32,0.30571776]
[1745552969051,0.28958975,602.09,600.32,0.30571776]
[1745552969354,1.25759526,602.2,600.32,0.30571776]
[1745552970056,0.28958975,602.19,600.32,0.30571776]
[1745552970557,0.28958975,602.19,600.31,1.322]
[1745552970856,0.28958975,602.19,600.32,0.30571804]
[1745552971755,1.25759526,602.2,600.32,0.30571804]
[1745552971948,0.28958975,602.18,600.32,0.30571804]
[1745552973058,1.25759526,602.06,600.32,0.30571804]
[1745552973755,1.25759526,602.06,600.31,1.322]
[1745552973950,1.25759526,602.06,600.32,0.30571004]
[1745552975154,0.28960662,602.05,600.32,0.30571004]
[1745552979158,1.25759526,601.83,600.39,1.0596617]
[1745552979356,1.25759526,601.83,600.4,0.30571004]
[1745552979957,1.25759526,601.83,600.39,1.0596617]
[1745552981158,0.28962469,601.82,600.39,1.0596617]
[1745552982259,0.28962469,601.82,600.33,1.24]
[1745552982460,0.28962469,601.82,600.4,1.089]
[1745552986761,1.25759526,602.03,600.4,1.089]
[1745552987159,0.28959939,602.02,600.4,1.089]
[1745552988858,0.28959939,602.02,600.4,2.195]
[1745552989762,1.25759526,602.04,600.4,3.582]
[1745552989960,1.25759526,602.04,600.41,0.3057247]
[1745552990157,0.28959818,602.03,600.41,0.3057247]
[1745552991263,0.28959818,602.03,600.4,3.582]
[1745552991465,0.28959818,602.03,600.41,0.30572531]
[1745552992764,1.25759526,602.05,600.41,0.30572531]
[1745552992960,1.25759526,602.05,600.42,0.30572531]
[1745552993160,0.2896018,602.04,600.4,3.582]
[1745552993366,0.2896018,602.04,600.41,0.30572513]
[1745552993567,1.25759526,601.93,600.41,0.30572513]
[1745552994268,1.25759526,601.93,600.41,1.58772513]
[1745552994467,1.25759526,601.93,600.41,1.282]
[1745552995668,1.25759526,601.93,600.42,0.30573417]
[1745552996070,0.28962952,601.92,600.42,0.30573417]
[1745552996671,1.54722478,601.92,600.42,0.30573417]
[1745552997673,1.54722478,601.92,600.41,1.282]
[1745552997868,1.54722478,601.92,600.43,0.30573417]
[1745552998067,1.54722478,601.92,600.44,0.30573417]
[1745552998270,1.54722478,601.92,600.45,0.30573417]
[1745552998571,1.54722478,601.92,600.46,0.30573417]
[1745552998769,1.25759526,601.92,600.42,0.30573417]
[1745552999173,0.28963072,601.91,600.42,0.30573417]
[1745552999973,1.25759526,601.74,600.42,0.30573417]
[1745553000671,1.25759526,601.74,600.41,1.282]
[1745553000875,1.25759526,601.74,600.42,0.30572951]
[1745553001875,1.25759526,601.74,600.41,1.282]
[1745553002074,1.25759526,601.75,600.42,0.30572942]
[1745553002270,0.28965242,601.73,600.42,0.30572942]
[1745553004775,1.25759526,601.75,600.42,0.30572942]
[1745553005073,0.28965121,601.72,600.42,0.30572942]
[1745553005882,0.28965121,601.72,600.42,1.258]
[1745553007781,1.25759526,601.9,600.42,1.258]
[1745553007976,0.28963193,601.71,600.42,1.258]
[1745553008375,1.25759526,601.9,600.42,1.258]
[1745553009082,0.28963193,601.89,600.42,1.258]
[1745553010778,1.25759526,601.9,600.42,1.258]
[1745553011181,0.28963193,601.89,600.42,1.258]
[1745553013783,1.25759526,601.9,600.42,1.258]
[1745553014183,0.28963193,601.89,600.42,1.258]
[1745553014385,0.28963193,601.89,600.28,1.0596617]
[1745553014883,0.28963193,601.89,600.29,0.30572897]
[1745553016786,1.25759526,601.9,600.29,0.30572897]
[1745553017086,1.25759526,601.9,600.29,1.36539067]
[1745553017388,0.2896488,601.89,600.3,0.30572897]
[1745553017581,0.2896488,601.89,600.31,0.30572746]
[1745553017983,0.2896488,601.89,600.3,0.30572746]
[1745553018184,0.2896488,601.89,600.32,0.30572746]
[1745553018383,0.2896488,601.89,600.31,0.30572746]
[1745553018581,0.2896488,601.89,600.32,0.30572746]
[1745553018786,0.2896488,601.89,600.3,0.30572746]
[1745553018986,0.2896488,601.89,600.31,0.30572746]
[1745553019187,0.2896488,601.89,600.3,0.30572746]
[1745553019491,1.25759526,601.75,600.38,1.0596617]
[1745553019688,1.25759526,601.75,600.39,0.30572746]
[1745553020289,0.28965483,601.74,600.39,0.30572746]
[1745553021686,1.54725009,601.74,600.39,0.30572746]
[1745553023789,1.54725009,601.74,600.38,1.0596617]
[1745553024088,1.54725009,601.74,600.39,0.30571982]
[1745553024490,0.28965483,601.74,600.39,0.30571982]
[1745553025392,0.28965483,601.74,600.38,1.0596617]
[1745553025591,0.28965483,601.74,600.39,0.3057193]
[1745553025786,1.25759526,601.79,600.39,0.3057193]
[1745553026087,0.28963072,601.73,600.39,0.3057193]
[1745553026990,0.28963072,601.73,600.34,0.3057193]
[1745553027189,0.28963072,601.73,600.35,0.3057193]
[1745553027390,0.28963072,601.73,600.34,0.3057193]
[1745553028794,1.25759526,601.89,600.34,0.3057193]
[1745553029192,0.28962469,601.72,600.34,0.3057193]
[1745553029391,1.25759526,601.91,600.34,0.3057193]
[1745553030298,0.28962228,601.9,600.34,0.3057193]
[1745553031693,0.28962228,601.9,600.35,0.30572105]
[1745553031898,1.25759526,601.91,600.34,0.30572105]
[1745553032099,1.25759526,602.08,600.35,0.30572105]
[1745553032299,0.28962228,601.89,600.26,0.30572105]
[1745553032495,1.25759526,602.08,600.27,0.30572105]
[1745553032699,1.25759526,602.08,600.28,0.30572105]
[1745553032895,1.25759526,602.08,600.29,0.30572105]
[1745553033200,1.25759526,602.08,600.3,0.30572105]
[1745553033401,0.28961144,602.07,600.26,0.30572105]
[1745553033700,0.28961144,602.07,600.27,0.30572105]
[1745553033896,0.28961144,602.07,600.28,0.30572105]
[1745553034101,0.28961144,602.07,600.25,1.0596617]
[1745553034401,0.28961144,602.07,600.26,0.30572715]
[1745553035800,0.28961144,602.07,600.2,0.30572715]
[1745553035995,0.28961144,602.07,600.21,0.30572715]
[1745553036196,0.28961144,602.07,600.2,0.30572715]
[1745553036398,0.28961144,602.07,600.22,0.30572715]
[1745553036601,0.28961144,602.07,600.23,0.30572715]
[1745553036799,0.28961144,602.07,600.2,0.30572715]
[1745553039303,0.28961144,602.07,600.17,0.30572715]
[1745553039605,0.28961144,602.07,600.18,0.30572022]
[1745553039904,0.28961144,602.07,600.19,0.30572022]
[1745553040105,0.28961144,602.07,600.17,0.30572022]
[1745553040302,0.28961144,602.07,600.18,0.30572022]
[1745553040504,0.28961144,602.07,600.17,0.30572022]
[1745553041001,0.28961144,602.07,600.16,1.0596617]
[1745553041205,0.28961144,602.07,600.17,0.30572017]
[1745553041610,0.28961144,602.07,600.15,0.30572017]
[1745553041902,0.28961144,602.07,600.16,0.30572017]
[1745553042106,0.28961144,602.07,600.15,0.30572017]
[1745553042608,0.28961144,602.07,600.14,1.0596617]
[1745553042807,0.28961144,602.07,600.15,0.30572411]
[1745553045008,0.28961144,602.07,600.14,0.30572411]
[1745553045205,0.28961144,602.07,600.15,0.30572411]
[1745553045410,0.28961144,602.07,600.16,0.30572411]
[1745553045607,0.28961144,602.07,600.14,0.30572411]
[1745553045806,0.28961144,602.07,600.17,0.30572411]
[1745553046007,0.28961144,602.07,600.13,1.34928398]
[1745553046008,0.28961144,602.07,600.18,0.30572411]
[1745553046310,0.28961144,602.07,600.14,0.30572411]
[1745553046511,0.28961144,602.07,600.15,0.30572411]
[1745553046712,0.28961144,602.07,600.14,0.30572411]
[1745553047314,0.28961144,602.07,600.13,0.28962228]
[1745553047609,0.28961144,602.07,600.14,0.30571783]
[1745553049012,0.28961144,602.07,600.15,0.305718]
[1745553049310,0.28961144,602.07,600.13,0.28962228]
[1745553049311,0.28961144,602.07,600.16,0.305718]
[1745553049511,0.28961144,602.07,600.14,0.305718]
[1745553049708,0.28961144,602.07,600.16,1.0596617]
[1745553049909,1.25759526,602.28,600.17,0.305718]
[1745553050214,0.28960059,602.06,600.17,0.305718]
[1745553050409,1.25759526,602.28,600.17,0.305718]
[1745553052213,1.25759526,602.28,600.18,0.30571818]
[1745553052413,0.28960059,602.27,600.17,0.30571818]
[1745553053614,0.28960059,602.27,600.16,1.0596617]
[1745553053814,0.28960059,602.27,600.17,0.30571791]
[1745553055014,1.54719585,602.27,600.17,1.36537961]
[1745553055318,1.54719585,602.27,600.18,0.30571791]
[1745553055819,1.25759526,602.27,600.18,0.30571791]
[1745553057522,1.25759526,602.03,600.28,1.0596617]
[1745553057719,1.25759526,602.03,600.29,0.30571791]
[1745553058420,0.28961505,602.02,600.29,0.30571791]
[1745553058820,1.25759526,602.03,600.29,0.30571791]
[1745553059016,1.25759526,602.03,600.29,1.38271791]
[1745553059315,0.28961385,602.02,600.3,0.30571791]
[1745553059817,1.25759526,601.99,600.3,0.30571791]
[1745553062323,0.28961746,601.98,600.3,0.30571791]
[1745553062624,0.28961746,601.98,600.31,0.30571314]
[1745553062824,0.28961746,601.98,600.3,1.37971314]
[1745553063018,0.28961746,601.98,600.31,0.30571314]
[1745553064824,1.25759526,602.09,600.31,0.30571314]
[1745553065225,0.28958975,602.08,600.31,0.30571314]
[1745553065725,0.28958975,602.08,600.32,0.30571525]
[1745553065925,0.28958975,602.08,600.33,0.30571525]
[1745553066126,0.28958975,602.08,600.34,0.30571525]
[1745553066326,0.28958975,602.08,600.35,0.30571525]
[1745553066526,0.28958975,602.08,600.36,0.30571525]
[1745553066825,0.28958975,602.08,600.37,0.30571525]
[1745553067027,1.25759526,602.06,600.31,0.30571525]
[1745553067222,1.25759526,602.06,600.38,0.30571525]
[1745553067430,1.25759526,602.06,600.39,0.30571525]
[1745553067623,1.25759526,602.06,600.31,0.30571525]
[1745553067827,1.25759526,602.06,600.32,0.30571407]
[1745553068127,1.25759526,602.06,600.33,0.30571407]
[1745553068327,0.28959336,602.05,600.33,1.07]
[1745553068527,0.28959336,602.05,600.34,0.30571407]
[1745553068728,0.28959336,602.05,600.33,1.07]
[1745553069023,0.28959336,602.05,600.34,0.30571301]
[1745553069427,1.25759526,602.03,600.34,0.30571301]
[1745553070330,1.25759526,602.03,600.33,1.07]
[1745553070531,1.25759526,602.03,600.34,0.30571764]
[1745553071033,0.28959336,602.02,600.34,0.30571764]
[1745553071828,0.28959336,602.02,600.33,1.07]
[1745553072032,0.28959336,602.02,600.34,0.30571737]
[1745553072934,1.25759526,601.96,600.34,0.30571737]
[1745553073435,1.25759526,601.96,600.33,1.07]
[1745553073635,1.25759526,601.96,600.34,0.30571513]
[1745553074134,0.2896018,601.95,600.34,0.30571513]
[1745553074931,0.2896018,601.95,600.33,1.07]
[1745553075136,0.2896018,601.95,600.34,0.30571652]
[1745553076835,1.25759526,601.96,600.34,0.30571652]
[1745553077036,1.25759526,601.96,600.35,0.946]
[1745553077237,0.2896018,601.94,600.36,0.30571652]
[1745553079842,1.25759526,601.97,600.36,0.30571652]
[1745553080242,0.28959818,601.93,600.36,0.30571652]
[1745553082740,0.28959818,601.93,600.35,0.946]
[1745553082945,1.25759526,601.98,600.36,0.30570478]
[1745553083246,1.25759526,601.87,600.39,1.0596617]
[1745553083540,1.25759526,601.87,600.4,0.30570478]
[1745553084345,1.25759526,601.87,600.39,1.0596617]
[1745553084541,1.25759526,601.87,600.4,0.3056922]
[1745553085851,1.25759526,601.93,600.4,1.3653539]
[1745553086050,1.16797319,601.92,600.41,0.3056922]
[1745553086349,0.28959818,601.86,600.41,0.3056922]
[1745553086551,1.16797319,601.85,600.41,0.3056922]
[1745553087043,1.16797319,601.84,600.41,0.3056922]
[1745553087449,1.16797319,601.84,600.41,1.175]
[1745553087650,1.16797319,601.83,600.42,0.30569291]
[1745553087945,1.16797319,601.82,600.42,0.30569291]
[1745553088548,1.16797319,601.81,600.42,0.30569291]
[1745553088748,1.16797319,601.8,600.42,0.30569291]
[1745553088949,1.16797319,601.8,600.42,1.72569291]
[1745553089249,1.16797319,601.8,600.43,0.30569291]
[1745553089450,1.16797319,601.79,600.43,0.30569291]
[1745553089650,1.16797319,601.78,600.43,0.30569291]
[1745553090051,1.16797319,601.77,600.43,0.30569291]
[1745553090653,1.16797319,601.76,600.42,1.42]
[1745553090953,1.16797319,601.76,600.43,0.3056908]
[1745553091254,1.16797319,601.75,600.43,0.3056908]
[1745553091548,1.16797319,601.75,600.42,1.42]
[1745553091852,1.16797319,601.74,600.42,1.42]
[1745553092250,0.28961023,601.73,600.42,1.42]
[1745553092454,1.45758342,601.73,600.42,1.42]
[1745553093048,1.16797319,601.72,600.42,1.42]
[1745553093253,0.28961023,601.73,600.42,1.42]
[1745553093554,1.13181995,601.71,600.43,0.30569015]
[1745553093955,1.13181995,601.71,600.42,1.42]
[1745553094150,1.13181995,601.7,600.42,1.42]
[1745553094756,1.13181995,601.69,600.42,1.42]
[1745553095150,1.25759526,602.16,600.42,1.42]
[1745553095151,1.13181995,601.68,600.42,1.42]
[1745553095755,1.13181995,601.67,600.42,1.42]
[1745553096154,1.13181995,601.66,600.42,1.42]
[1745553096555,1.13181995,601.65,600.42,1.42]
[1745553097259,1.13181995,601.64,600.42,1.42]
[1745553097459,1.13181995,601.63,600.42,1.42]
[1745553097759,1.13181995,601.62,600.42,1.42]
[1745553097959,1.13181995,601.61,600.42,1.42]
[1745553098259,1.13181995,601.6,600.42,1.42]
[1745553098759,1.13181995,601.59,600.42,2.434]
[1745553099059,1.13181995,601.58,600.42,2.434]
[1745553099459,1.13181995,601.57,600.42,2.434]
[1745553100460,1.13181995,601.56,600.42,2.434]
[1745553100860,1.13181995,601.55,600.42,2.434]
[1745553101258,1.13181995,601.55,600.43,0.30568405]
[1745553101462,2.13965861,602.52,600.43,0.30568405]
[1745553101463,1.13181995,601.54,600.43,0.30568405]
[1745553101663,1.13181995,601.54,600.42,2.434]
[1745553101858,1.13181995,601.54,600.43,0.30568427]
[1745553102063,1.13181995,601.53,600.43,0.30568427]
[1745553102463,1.13181995,601.52,600.43,0.30568427]
[1745553102861,1.13181995,601.51,600.43,0.30568427]
[1745553103165,1.13181995,601.5,600.43,0.30568427]
[1745553104366,1.13181995,601.49,600.43,0.30568427]
[1745553104766,1.13181995,601.48,600.43,0.30568427]
[1745553105262,1.13181995,601.47,600.43,0.30568427]
[1745553105868,1.13181995,601.46,600.43,0.30568427]
[1745553106068,1.13181995,601.46,600.43,1.59268427]
[1745553106268,1.13181995,601.45,600.43,1.287]
[1745553106669,1.13181995,601.44,600.43,1.287]
[1745553107472,1.13181995,601.43,600.43,1.287]
[1745553108272,1.13181995,601.42,600.43,1.287]
[1745553108474,1.13181995,601.42,600.44,0.30568953]
[1745553108972,1.13181995,601.41,600.44,0.30568953]
[1745553109772,1.13181995,601.4,600.44,0.30568953]
[1745553110169,1.13181995,601.39,600.44,0.30568953]
[1745553110872,1.13181995,601.38,600.44,0.30568953]
[1745553111374,1.13181995,601.37,600.44,0.30568953]
[1745553111776,1.13181995,601.36,600.44,0.30568953]
[1745553112177,1.13181995,601.35,600.44,0.30568953]
[1745553112578,1.13181995,601.35,600.43,1.287]
[1745553112779,1.13181995,601.35,600.44,0.30569343]
[1745553112980,1.13181995,601.34,600.44,0.30569343]
[1745553113576,1.13181995,601.33,600.44,0.30569343]
[1745553114083,1.13181995,601.32,600.45,1.343]
[1745553114279,1.13181995,601.32,600.46,0.30569343]
[1745553114482,1.13181995,601.31,600.46,0.30569343]
[1745553114678,1.25759526,602.05,600.46,0.30569343]
[1745553114679,1.13181995,601.3,600.46,0.30569343]
[1745553115584,1.13181995,601.29,600.45,1.343]
[1745553115780,1.13181995,601.29,600.46,0.30569517]
[1745553116085,1.13181995,601.28,600.46,0.30569517]
[1745553116881,1.25759526,602.05,600.46,0.30569517]
[1745553116882,1.13181995,601.27,600.46,0.30569517]
[1745553117280,1.13181995,601.27,600.45,1.343]
[1745553117281,1.13181995,601.27,600.47,0.30569545]
[1745553117482,1.13181995,601.26,600.48,0.30569545]
[1745553117781,1.13181995,601.26,600.46,0.30569545]
[1745553118084,1.25759526,602.01,600.47,0.30569545]
[1745553118085,1.13181995,601.25,600.47,0.30569545]
[1745553118285,1.13181995,601.25,600.46,0.30569545]
[1745553118580,1.13181995,601.24,600.47,0.30569545]
[1745553118784,1.13181995,601.24,600.48,0.30565537]
[1745553119084,1.13181995,601.23,600.49,0.30565537]
[1745553119280,1.13181995,601.23,600.5,0.30565537]
[1745553119479,1.13181995,601.23,600.51,0.30565537]
[1745553119683,1.13181995,601.22,600.52,0.30565537]
[1745553119984,1.13181995,601.22,600.53,0.30565537]
[1745553120184,1.13181995,601.22,600.46,0.30565537]
[1745553120387,1.13181995,601.21,600.47,0.30565218]
[1745553120684,1.13181995,601.21,600.48,0.30565218]
[1745553120885,1.13181995,601.21,600.46,0.30565218]
[1745553121086,1.13181995,601.2,600.47,0.30565218]
[1745553121282,1.13181995,601.2,600.46,0.30565218]
[1745553121484,1.13181995,601.19,600.45,1.343]
[1745553121681,1.13181995,601.19,600.46,0.30565667]
[1745553122185,1.13181995,601.18,600.46,0.30565667]
[1745553122380,1.13181995,601.17,600.46,0.30565667]
[1745553123188,1.13181995,601.16,600.46,0.30565667]
[1745553123482,1.13181995,601.15,600.46,0.30565667]
[1745553124287,1.13181995,601.14,600.46,0.30565667]
[1745553124790,1.13181995,601.13,600.46,0.30565667]
[1745553125289,1.13181995,601.12,600.46,0.30565667]
[1745553125790,1.13181995,601.11,600.46,0.30565667]
[1745553125990,1.13181995,601.11,600.45,1.343]
[1745553126191,1.13181995,601.11,600.46,0.3056557]
[1745553126490,1.13181995,601.1,600.46,0.3056557]
[1745553126886,1.13181995,601.09,600.46,0.3056557]
[1745553127291,1.13181995,601.08,600.46,0.3056557]
[1745553128093,1.13181995,601.07,600.46,0.3056557]
[1745553128693,1.13181995,601.06,600.46,0.3056557]
[1745553129093,1.13181995,601.05,600.46,0.3056557]
[1745553129695,1.13181995,601.04,600.46,0.3056557]
[1745553129994,1.13181995,601.03,600.46,0.3056557]
[1745553130190,1.13181995,601.03,600.45,1.343]
[1745553130495,1.13181995,601.03,600.46,0.3056504]
[1745553130691,1.13181995,601.03,600.47,0.3056504]
[1745553130889,1.25759526,602.17,600.45,1.343]
[1745553130890,1.13181995,601.02,600.46,0.3056504]
[1745553131093,1.13181995,601.01,600.47,0.3056504]
[1745553131291,1.13181995,601.01,600.48,0.3056504]
[1745553131490,1.13181995,601.01,600.45,1.343]
[1745553131491,1.13181995,601.01,600.49,0.3056504]
[1745553131689,1.13181995,601.0,600.5,0.3056504]
[1745553131892,1.13181995,601.0,600.51,0.3056504]
[1745553132197,1.13181995,600.99,600.52,0.30565013]
[1745553132395,1.13181995,600.99,600.53,0.30565013]
[1745553132598,1.13181995,600.98,600.45,1.343]
[1745553132897,1.13181995,600.98,600.46,0.30565016]
[1745553133196,1.13181995,600.97,600.46,0.30565016]
[1745553133498,1.13181995,600.96,600.46,0.30565016]
[1745553134292,1.13181995,600.95,600.46,0.30565016]
[1745553134596,1.13181995,600.94,600.46,0.30565016]
[1745553134997,1.13181995,600.93,600.46,0.30565016]
[1745553135197,1.13181995,600.93,600.47,0.30565013]
[1745553135397,1.13181995,600.93,600.48,0.30565013]
[1745553135599,1.13181995,600.92,600.46,0.30565013]
[1745553135798,1.13181995,600.92,600.47,0.30565013]
[1745553135998,1.13181995,600.91,600.48,0.30565013]
[1745553136194,1.13181995,600.91,600.49,0.30565013]
[1745553136398,1.13181995,600.9,600.5,0.30565013]
[1745553136593,1.13181995,600.9,600.45,1.343]
[1745553136794,1.13181995,600.9,600.46,0.3056508]
[1745553136995,1.13181995,600.89,600.46,0.3056508]
[1745553137195,1.13181995,600.88,600.46,0.3056508]
[1745553137500,1.13181995,600.87,600.46,0.3056508]
[1745553137896,1.13181995,600.86,600.46,0.3056508]
[1745553138195,1.13181995,600.85,600.46,0.3056508]
[1745553138699,1.13181995,600.85,600.45,1.343]
[1745553138899,1.13181995,600.84,600.46,0.30563226]
[1745553139302,1.13181995,600.83,600.46,0.30563226]
[1745553139701,1.13181995,600.83,600.45,1.343]
[1745553139902,1.13181995,600.83,600.46,0.30563014]
[1745553140201,1.13181995,600.82,600.46,0.30563014]
[1745553140802,1.13181995,600.81,600.46,0.30563014]
[1745553140999,1.13181995,600.81,600.45,1.343]
[1745553141303,1.13181995,600.8,600.45,1.343]
[1745553141604,1.13181995,600.8,600.46,0.30563517]
[1745553141905,1.13181995,600.8,600.45,1.343]
[1745553142102,1.13181995,600.79,600.45,1.343]
[1745553142407,1.13181995,600.78,600.46,0.30563463]
[1745553142708,1.13181995,600.77,600.45,1.343]
[1745553142910,1.13181995,600.77,600.46,0.30563643]
[1745553143308,1.13181995,600.76,600.46,0.30563643]
[1745553143605,1.25759526,602.41,600.46,0.30563643]
[1745553144310,1.13055745,602.4,600.45,1.343]
[1745553144610,1.13055745,602.39,600.46,0.30563824]
[1745553144807,1.13055745,602.39,600.45,1.343]
[1745553145011,1.13055745,602.38,600.45,1.343]
[1745553145213,1.13055745,602.37,600.45,1.343]
[1745553145511,1.13055745,602.37,600.46,1.022]
[1745553145912,1.13055745,602.36,600.46,1.022]
[1745553146113,1.13055745,602.35,600.46,1.022]
[1745553146313,1.42005927,602.35,600.46,1.022]
[1745553146514,1.13055745,602.34,600.46,1.022]
[1745553146812,1.13055745,602.33,600.46,1.022]
[1745553147211,1.13055745,602.32,600.47,1.157]
[1745553147614,1.13055745,602.31,600.48,0.30558204]
[1745553148117,1.13055745,602.3,600.48,0.30558204]
[1745553148616,1.13055745,602.29,600.48,0.30558204]
[1745553148915,1.13055745,602.29,600.47,1.157]
[1745553149117,1.13055745,602.29,600.48,0.30556052]
[1745553149315,1.42004,602.28,600.48,0.30556052]
[1745553150015,1.13055745,602.27,600.48,0.30556052]
[1745553150316,1.13055745,602.26,600.48,0.30556052]
[1745553150517,1.13055745,602.26,600.47,1.157]
[1745553150717,1.13055745,602.26,600.48,0.30555677]
[1745553151016,1.13055745,602.25,600.48,0.30555677]
[1745553151216,1.13055745,602.24,600.48,0.30555677]
[1745553151417,1.13055745,602.24,600.49,1.386]
[1745553151617,1.13055745,602.24,600.5,0.30555677]
[1745553151812,1.13055745,602.23,600.5,0.30555677]
[1745553152317,1.42004482,602.22,600.5,0.30555677]
[1745553152617,1.13055745,602.21,600.49,1.386]
[1745553153117,1.13055745,602.2,600.49,1.386]
[1745553153716,1.13055745,602.19,600.49,1.386]
[1745553154119,1.13055745,602.18,600.49,1.386]
[1745553154421,1.13055745,602.17,600.49,1.386]
[1745553154716,1.13055745,602.17,600.5,1.412]
[1745553155121,0.28950784,602.16,600.5,1.412]
[1745553155618,1.13055745,602.15,600.5,1.412]
[1745553156021,1.13055745,602.14,600.5,1.412]
[1745553156317,1.13055745,602.13,600.5,1.412]
[1745553156816,1.13055745,602.12,600.5,1.412]
[1745553157317,1.13055745,602.11,600.5,1.412]
[1745553158122,1.13055745,602.1,600.5,1.412]
[1745553158324,1.42007251,602.1,600.5,1.412]
[1745553158523,1.13055745,602.09,600.5,1.412]
[1745553158822,1.13055745,602.08,600.5,1.412]
[1745553159123,1.13055745,602.07,600.5,1.412]
[1745553159519,1.13055745,602.06,600.5,1.412]
[1745553159719,1.13055745,602.05,600.5,1.412]
[1745553160624,1.13055745,602.04,600.5,1.412]
[1745553161026,1.13055745,602.03,600.5,1.412]
[1745553161321,1.13055745,602.02,600.5,1.412]
[1745553161824,1.13055745,602.01,600.5,1.412]
[1745553162025,1.13055745,602.0,600.5,1.412]
[1745553162327,1.13055745,601.99,600.5,1.412]
[1745553162526,1.13055745,601.99,600.51,0.3055925]
[1745553163027,1.13055745,601.98,600.51,0.3055925]
[1745553163727,1.13055745,601.97,600.51,0.3055925]
[1745553164227,1.42008937,601.96,600.51,0.3055925]
[1745553164422,1.42008937,601.96,600.52,0.30559148]
[1745553164628,1.42008937,601.96,600.51,0.30559148]
[1745553164828,1.13055745,601.95,600.52,0.30559148]
[1745553165127,1.13055745,601.94,600.53,0.30559148]
[1745553165328,1.13055745,601.94,600.51,0.30559148]
[1745553165629,1.13055745,601.93,600.51,0.30559148]
[1745553166023,0.28953192,601.96,600.51,0.30559148]
[1745553166024,1.13055745,601.92,600.51,0.30559148]
[1745553166627,1.13055745,601.91,600.51,0.30559148]
[1745553167228,1.42010383,601.9,600.51,0.30559148]
[1745553167427,1.13055745,601.89,600.51,0.30559148]
[1745553168032,1.13055745,601.88,600.51,0.30559148]
[1745553168636,1.13055745,601.87,600.51,0.30559148]
[1745553168934,1.13055745,601.86,600.5,1.412]
[1745553169135,1.13055745,601.86,600.51,0.3056264]
[1745553169529,1.13055745,601.85,600.51,0.3056264]
[1745553170130,1.42011828,601.84,600.51,0.3056264]
[1745553170733,1.13055745,601.83,600.51,0.3056264]
[1745553171435,1.13055745,601.82,600.51,0.3056264]
[1745553172536,1.13055745,601.81,600.51,0.3056264]
[1745553172936,1.13055745,601.8,600.51,0.3056264]
[1745553173636,1.13055745,601.79,600.51,0.3056264]
[1745553174137,1.13055745,601.78,600.51,0.3056264]
[1745553174537,1.13055745,601.77,600.51,0.3056264]
[1745553175137,1.13055745,601.76,600.51,0.3056264]
[1745553175734,1.13055745,601.75,600.51,0.3056264]
[1745553176136,1.13055745,601.74,600.51,0.3056264]
[1745553176334,1.13055745,601.74,600.52,1.371]
[1745553176739,1.13055745,601.73,600.53,0.30562399]
[1745553177434,1.13055745,601.72,600.53,0.30562399]
[1745553177841,1.13055745,601.71,600.53,0.30562399]
[1745553178841,1.13055745,601.7,600.53,0.30562399]
[1745553179643,1.13055745,601.69,600.53,0.30562399]
[1745553179843,1.13055745,601.68,600.53,0.30562399]
[1745553180441,1.13055745,601.67,600.53,0.30562399]
[1745553180642,1.13055745,601.67,600.52,1.371]
[1745553181143,1.13055745,601.66,600.53,0.30565359]
[1745553181442,1.13055745,601.65,600.53,0.30565359]
[1745553181644,1.13055745,601.65,600.52,1.371]
[1745553181842,1.13055745,601.64,600.52,1.371]
[1745553182437,1.13055745,601.63,600.52,1.371]
[1745553182642,1.13055745,601.62,600.52,1.371]
[1745553182843,1.13055745,601.62,600.52,2.322]
[1745553183343,0.28958011,601.82,600.52,2.322]